[Event "Titled Tuesday Blitz February 15 Early 2022"]
[White "Postnikov, Daniil"]
[Black "Abdrlauf, Elham"]
[WhiteFideId "4166329"]
[BlackFideId "1533533"]
[WhiteElo "2261"]
[BlackElo "2334"]
[Result "0-1"]
[Round "02"]
[TimeControl "180+1"]
[Date "2022.02.15"]
[WhiteClock "0:00:09"]
[BlackClock "0:00:20"]

1. e4 {[%clk 0:03:00]}  c6 {[%clk 0:02:58]} 2. d4 {[%clk 0:03:00]}  d5 {[%clk 0:02:59]} 3. e5 {[%clk 0:03:01]}  c5 {[%clk 0:02:57]} 4. c3 {[%clk 0:03:01]}  Nc6 {[%clk 0:02:55]} 5. Be2 {[%clk 0:03:02]}  cxd4 {[%clk 0:02:55]} 6. cxd4 {[%clk 0:03:03]}  Bf5 {[%clk 0:02:53]} 7. Nf3 {[%clk 0:03:00]}  e6 {[%clk 0:02:53]} 8. O-O {[%clk 0:03:00]}  Nge7 {[%clk 0:02:53]} 9. Bg5 {[%clk 0:02:59]}  h6 {[%clk 0:02:49]} 10. Bh4 {[%clk 0:02:59]}  g5 {[%clk 0:02:49]} 11. Bg3 {[%clk 0:03:00]}  Ng6 {[%clk 0:02:42]} 12. Nc3 {[%clk 0:02:54]}  g4 {[%clk 0:02:30]} 13. Ne1 {[%clk 0:02:37]}  Qb6 {[%clk 0:02:30]} 14. Nc2 {[%clk 0:02:10]}  Qxb2 {[%clk 0:02:05]} 15. Nb5 {[%clk 0:02:02]}  Qxc2 {[%clk 0:01:54]} 16. Nc7+ {[%clk 0:01:51]}  Kd7 {[%clk 0:01:54]} 17. Nxa8 {[%clk 0:01:52]}  Qxd1 {[%clk 0:01:54]} 18. Rfxd1 {[%clk 0:01:53]}  Bb4 {[%clk 0:01:54]} 19. Bd3 {[%clk 0:01:27]}  Bxd3 {[%clk 0:01:49]} 20. Rxd3 {[%clk 0:01:28]}  Rxa8 {[%clk 0:01:50]} 21. Rb1 {[%clk 0:01:16]}  b6 {[%clk 0:01:48]} 22. f3 {[%clk 0:01:04]}  h5 {[%clk 0:01:32]} 23. fxg4 {[%clk 0:01:04]}  hxg4 {[%clk 0:01:33]} 24. Rf1 {[%clk 0:01:04]}  Rf8 {[%clk 0:01:32]} 25. Bf2 {[%clk 0:01:04]}  Nf4 {[%clk 0:01:27]} 26. Rb3 {[%clk 0:00:56]}  a5 {[%clk 0:00:52]} 27. Kh1 {[%clk 0:00:56]}  Ne2 {[%clk 0:00:45]} 28. a3 {[%clk 0:00:31]}  Nexd4 {[%clk 0:00:42]} 29. Rg3 {[%clk 0:00:29]}  Bc5 {[%clk 0:00:38]} 30. Rxg4 {[%clk 0:00:29]}  Nf5 {[%clk 0:00:26]} 31. Bxc5 {[%clk 0:00:29]}  bxc5 {[%clk 0:00:26]} 32. Rb1 {[%clk 0:00:29]}  Kc7 {[%clk 0:00:26]} 33. Rf4 {[%clk 0:00:24]}  Nxe5 {[%clk 0:00:23]} 34. Rb5 {[%clk 0:00:17]}  Kc6 {[%clk 0:00:23]} 35. Rxa5 {[%clk 0:00:17]}  d4 {[%clk 0:00:24]} 36. g4 {[%clk 0:00:12]}  Ne3 {[%clk 0:00:22]} 37. g5 {[%clk 0:00:10]}  d3 {[%clk 0:00:22]} 38. Rf2 {[%clk 0:00:10]}  N5c4 {[%clk 0:00:20]} 39. Ra6+ {[%clk 0:00:09]}  Kb7 {[%clk 0:00:20]} 40. Rd6 {[%clk 0:00:09]}  Nxd6 {[%clk 0:00:20]} 41. Rf3 {[%clk 0:00:09]}  d2 {[%clk 0:00:20]} 0-1


[Site "https://www.chess.com"]

[Event "Titled Tuesday Blitz February 15 Early 2022"]
[White "Pourkashiyan, Atousa"]
[Black "De Souza Sa, Apolo"]
[WhiteFideId "12502014"]
[BlackFideId "324225390"]
[WhiteElo "2247"]
[BlackElo "1828"]
[Result "0-1"]
[Round "02"]
[TimeControl "180+1"]
[Date "2022.02.15"]
[WhiteClock "0:00:07"]
[BlackClock "0:00:08"]

1. e4 {[%clk 0:03:00]}  c5 {[%clk 0:02:54]} 2. Nf3 {[%clk 0:02:56]}  d6 {[%clk 0:02:54]} 3. d4 {[%clk 0:02:56]}  cxd4 {[%clk 0:02:55]} 4. Nxd4 {[%clk 0:02:57]}  Nf6 {[%clk 0:02:56]} 5. Nc3 {[%clk 0:02:57]}  a6 {[%clk 0:02:53]} 6. Bc4 {[%clk 0:02:55]}  e6 {[%clk 0:02:53]} 7. O-O {[%clk 0:02:55]}  Be7 {[%clk 0:02:54]} 8. Bb3 {[%clk 0:02:48]}  O-O {[%clk 0:02:54]} 9. f4 {[%clk 0:02:47]}  Nbd7 {[%clk 0:02:52]} 10. Bxe6 {[%clk 0:02:37]}  fxe6 {[%clk 0:02:53]} 11. Nxe6 {[%clk 0:02:37]}  Qb6+ {[%clk 0:02:49]} 12. Kh1 {[%clk 0:02:37]}  Re8 {[%clk 0:02:41]} 13. Nd5 {[%clk 0:02:38]}  Nxd5 {[%clk 0:02:25]} 14. exd5 {[%clk 0:02:37]}  Nf6 {[%clk 0:02:22]} 15. f5 {[%clk 0:02:35]}  Bxe6 {[%clk 0:02:17]} 16. fxe6 {[%clk 0:02:35]}  Rf8 {[%clk 0:02:12]} 17. Bg5 {[%clk 0:02:32]}  Qxb2 {[%clk 0:01:55]} 18. Rb1 {[%clk 0:02:28]}  Qxa2 {[%clk 0:01:50]} 19. Rxb7 {[%clk 0:02:26]}  Rae8 {[%clk 0:01:44]} 20. h3 {[%clk 0:01:31]}  Qxd5 {[%clk 0:01:33]} 21. Qxd5 {[%clk 0:01:08]}  Nxd5 {[%clk 0:01:32]} 22. Rxf8+ {[%clk 0:01:08]}  Kxf8 {[%clk 0:01:25]} 23. Bd2 {[%clk 0:01:03]}  Bf6 {[%clk 0:01:23]} 24. c4 {[%clk 0:00:58]}  Nc3 {[%clk 0:01:15]} 25. Bf4 {[%clk 0:00:30]}  Rxe6 {[%clk 0:01:10]} 26. Rb6 {[%clk 0:00:30]}  Ne2 {[%clk 0:00:54]} 27. Bxd6+ {[%clk 0:00:28]}  Be7 {[%clk 0:00:50]} 28. c5 {[%clk 0:00:20]}  Bxd6 {[%clk 0:00:49]} 29. cxd6 {[%clk 0:00:21]}  Ke8 {[%clk 0:00:42]} 30. Rxa6 {[%clk 0:00:19]}  Rg6 {[%clk 0:00:37]} 31. g4 {[%clk 0:00:13]}  Nf4 {[%clk 0:00:35]} 32. Kh2 {[%clk 0:00:13]}  Kd7 {[%clk 0:00:32]} 33. Kg3 {[%clk 0:00:12]}  Ne6 {[%clk 0:00:32]} 34. h4 {[%clk 0:00:10]}  h5 {[%clk 0:00:17]} 35. g5 {[%clk 0:00:10]}  Nf8 {[%clk 0:00:16]} 36. Rb6 {[%clk 0:00:07]}  Rxd6 {[%clk 0:00:15]} 37. Rb7+ {[%clk 0:00:07]}  Ke6 {[%clk 0:00:15]} 38. Rxg7 {[%clk 0:00:08]}  Rd7 {[%clk 0:00:12]} 39. Rg8 {[%clk 0:00:08]}  Rf7 {[%clk 0:00:13]} 40. Rh8 {[%clk 0:00:08]}  Ng6 {[%clk 0:00:12]} 41. Rh6 {[%clk 0:00:08]}  Rg7 {[%clk 0:00:12]} 42. Kf3 {[%clk 0:00:08]}  Kf5 {[%clk 0:00:12]} 43. Kg3 {[%clk 0:00:08]}  Ne5 {[%clk 0:00:11]} 44. Rh8 {[%clk 0:00:08]}  Ng6 {[%clk 0:00:11]} 45. Ra8 {[%clk 0:00:08]}  Re7 {[%clk 0:00:11]} 46. Ra5+ {[%clk 0:00:08]}  Re5 {[%clk 0:00:12]} 47. Ra6 {[%clk 0:00:08]}  Re3+ {[%clk 0:00:12]} 48. Kf2 {[%clk 0:00:08]}  Re6 {[%clk 0:00:13]} 49. Ra5+ {[%clk 0:00:08]}  Kg4 {[%clk 0:00:13]} 50. Ra4+ {[%clk 0:00:08]}  Nf4 {[%clk 0:00:13]} 51. Rb4 {[%clk 0:00:07]}  Re2+ {[%clk 0:00:13]} 52. Kf1 {[%clk 0:00:07]}  Rh2 {[%clk 0:00:13]} 53. g6 {[%clk 0:00:07]}  Rxh4 {[%clk 0:00:10]} 54. g7 {[%clk 0:00:07]}  Rh1+ {[%clk 0:00:09]} 55. Kf2 {[%clk 0:00:08]}  Rh2+ {[%clk 0:00:08]} 56. Kf1 {[%clk 0:00:08]}  Rh1+ {[%clk 0:00:08]} 57. Kf2 {[%clk 0:00:09]}  Rh2+ {[%clk 0:00:08]} 58. Ke3 {[%clk 0:00:09]}  Re2+ {[%clk 0:00:08]} 59. Kd4 {[%clk 0:00:07]}  Re8 {[%clk 0:00:08]} 0-1


[Site "https://www.chess.com"]

[Event "Titled Tuesday Blitz February 15 Early 2022"]
[White "Praslov, Andrey"]
[Black "Dronavalli, Harika"]
[WhiteFideId "4147863"]
[BlackFideId "5015197"]
[WhiteElo "2379"]
[BlackElo "2382"]
[Result "0-1"]
[Round "02"]
[TimeControl "180+1"]
[Date "2022.02.15"]
[WhiteClock "0:00:09"]
[BlackClock "0:00:53"]

1. d4 {[%clk 0:03:00]}  Nf6 {[%clk 0:03:00]} 2. Nf3 {[%clk 0:03:00]}  d5 {[%clk 0:02:59]} 3. c4 {[%clk 0:02:59]}  e6 {[%clk 0:02:59]} 4. Nc3 {[%clk 0:02:58]}  Bb4 {[%clk 0:02:56]} 5. e3 {[%clk 0:02:57]}  O-O {[%clk 0:02:54]} 6. Bd3 {[%clk 0:02:57]}  dxc4 {[%clk 0:02:49]} 7. Bxc4 {[%clk 0:02:57]}  c5 {[%clk 0:02:50]} 8. O-O {[%clk 0:02:56]}  cxd4 {[%clk 0:02:50]} 9. exd4 {[%clk 0:02:55]}  b6 {[%clk 0:02:51]} 10. Qe2 {[%clk 0:02:51]}  Bb7 {[%clk 0:02:38]} 11. Rd1 {[%clk 0:02:47]}  h6 {[%clk 0:02:26]} 12. Ne5 {[%clk 0:02:36]}  Nc6 {[%clk 0:02:17]} 13. a3 {[%clk 0:01:52]}  Bxc3 {[%clk 0:02:15]} 14. bxc3 {[%clk 0:01:51]}  Rc8 {[%clk 0:02:15]} 15. Bd2 {[%clk 0:01:46]}  Nxe5 {[%clk 0:01:58]} 16. dxe5 {[%clk 0:01:43]}  Ne4 {[%clk 0:01:39]} 17. Bxh6 {[%clk 0:01:28]}  Qh4 {[%clk 0:01:38]} 18. Rd4 {[%clk 0:00:48]}  Qxh6 {[%clk 0:01:14]} 19. Rxe4 {[%clk 0:00:48]}  Bxe4 {[%clk 0:01:14]} 20. Qxe4 {[%clk 0:00:48]}  Rfd8 {[%clk 0:01:13]} 21. f4 {[%clk 0:00:44]}  Qh7 {[%clk 0:01:06]} 22. Qe2 {[%clk 0:00:30]}  Qh4 {[%clk 0:01:06]} 23. g3 {[%clk 0:00:25]}  Qe7 {[%clk 0:01:06]} 24. Bd3 {[%clk 0:00:19]}  Qc5+ {[%clk 0:01:05]} 25. Kh1 {[%clk 0:00:17]}  Qxc3 {[%clk 0:01:05]} 26. Rd1 {[%clk 0:00:16]}  Rd5 {[%clk 0:01:02]} 27. Qe4 {[%clk 0:00:14]}  g6 {[%clk 0:01:02]} 28. f5 {[%clk 0:00:14]}  gxf5 {[%clk 0:00:56]} 29. Qf4 {[%clk 0:00:10]}  Qxe5 {[%clk 0:00:54]} 30. Qg5+ {[%clk 0:00:10]}  Qg7 {[%clk 0:00:55]} 31. Qe7 {[%clk 0:00:09]}  Rcd8 {[%clk 0:00:54]} 32. Be2 {[%clk 0:00:09]}  Rxd1+ {[%clk 0:00:53]} 0-1


[Site "https://www.chess.com"]

[Event "Titled Tuesday Blitz February 15 Early 2022"]
[White "Przybylski, Wojciech"]
[Black "Soumya, Swaminathan"]
[WhiteFideId "1117599"]
[BlackFideId "5016193"]
[WhiteElo "2133"]
[BlackElo "2115"]
[Result "1-0"]
[Round "02"]
[TimeControl "180+1"]
[Date "2022.02.15"]
[WhiteClock "0:00:10"]
[BlackClock "0:00:02"]

1. e4 {[%clk 0:03:00]}  c5 {[%clk 0:02:58]} 2. Nf3 {[%clk 0:02:56]}  Nc6 {[%clk 0:02:58]} 3. d4 {[%clk 0:02:55]}  cxd4 {[%clk 0:02:58]} 4. Nxd4 {[%clk 0:02:56]}  Qb6 {[%clk 0:02:58]} 5. Nb3 {[%clk 0:02:55]}  Nf6 {[%clk 0:02:58]} 6. Nc3 {[%clk 0:02:55]}  e6 {[%clk 0:02:58]} 7. Be3 {[%clk 0:02:54]}  Qc7 {[%clk 0:02:57]} 8. g4 {[%clk 0:02:53]}  Bb4 {[%clk 0:02:55]} 9. Bg2 {[%clk 0:02:53]}  d5 {[%clk 0:02:42]} 10. exd5 {[%clk 0:02:44]}  Nxd5 {[%clk 0:02:43]} 11. Bxd5 {[%clk 0:02:38]}  exd5 {[%clk 0:02:44]} 12. Qxd5 {[%clk 0:02:37]}  O-O {[%clk 0:02:34]} 13. O-O-O {[%clk 0:02:26]}  Be6 {[%clk 0:02:25]} 14. Qe4 {[%clk 0:02:17]}  Bxc3 {[%clk 0:02:07]} 15. bxc3 {[%clk 0:02:17]}  Rfe8 {[%clk 0:02:05]} 16. c4 {[%clk 0:02:09]}  Nb4 {[%clk 0:02:00]} 17. Qf4 {[%clk 0:01:56]}  Qc6 {[%clk 0:01:43]} 18. a3 {[%clk 0:01:49]}  Bxc4 {[%clk 0:01:07]} 19. Nc5 {[%clk 0:01:29]}  Nd5 {[%clk 0:00:17]} 20. Qxc4 {[%clk 0:01:21]}  Nxe3 {[%clk 0:00:17]} 21. fxe3 {[%clk 0:01:20]}  b6 {[%clk 0:00:17]} 22. Rhf1 {[%clk 0:01:12]}  Re7 {[%clk 0:00:15]} 23. Rd5 {[%clk 0:00:44]}  bxc5 {[%clk 0:00:13]} 24. Rxc5 {[%clk 0:00:45]}  Qe8 {[%clk 0:00:11]} 25. Rcf5 {[%clk 0:00:37]}  Rd8 {[%clk 0:00:07]} 26. Qc5 {[%clk 0:00:25]}  Rxe3 {[%clk 0:00:04]} 27. Rxf7 {[%clk 0:00:22]}  Re1+ {[%clk 0:00:04]} 28. Kb2 {[%clk 0:00:22]}  Rb8+ {[%clk 0:00:04]} 29. Kc3 {[%clk 0:00:11]}  Rxf1 {[%clk 0:00:03]} 30. Rxf1 {[%clk 0:00:11]}  Rc8 {[%clk 0:00:03]} 31. Rf5 {[%clk 0:00:10]}  Qe3+ {[%clk 0:00:02]} 32. Kb4 {[%clk 0:00:10]} 1-0


[Site "https://www.chess.com"]

[Event "Titled Tuesday Blitz February 15 Early 2022"]
[White "Redzisz, Michal"]
[Black "De Silva, L M S T"]
[WhiteFideId "21816107"]
[BlackFideId "9953698"]
[WhiteElo "1961"]
[BlackElo "1631"]
[Result "0-1"]
[Round "02"]
[TimeControl "180+1"]
[Date "2022.02.15"]
[WhiteClock "0:00:12"]
[BlackClock "0:00:19"]

1. c4 {[%clk 0:02:55]}  e5 {[%clk 0:02:59]} 2. Nc3 {[%clk 0:02:56]}  Nf6 {[%clk 0:02:59]} 3. g3 {[%clk 0:02:56]}  d5 {[%clk 0:02:59]} 4. cxd5 {[%clk 0:02:57]}  Nxd5 {[%clk 0:03:00]} 5. Bg2 {[%clk 0:02:58]}  Nb6 {[%clk 0:03:01]} 6. Nf3 {[%clk 0:02:57]}  Nc6 {[%clk 0:03:01]} 7. O-O {[%clk 0:02:57]}  Be7 {[%clk 0:03:01]} 8. b3 {[%clk 0:02:57]}  O-O {[%clk 0:03:00]} 9. Bb2 {[%clk 0:02:58]}  f5 {[%clk 0:03:00]} 10. d3 {[%clk 0:02:56]}  Be6 {[%clk 0:02:56]} 11. Rc1 {[%clk 0:02:56]}  Bf6 {[%clk 0:02:56]} 12. Nd2 {[%clk 0:02:56]}  Qd7 {[%clk 0:02:49]} 13. Nc4 {[%clk 0:02:56]}  Nxc4 {[%clk 0:02:49]} 14. dxc4 {[%clk 0:02:53]}  Qf7 {[%clk 0:02:43]} 15. Nd5 {[%clk 0:02:46]}  Bg5 {[%clk 0:02:42]} 16. f4 {[%clk 0:02:44]}  exf4 {[%clk 0:02:41]} 17. gxf4 {[%clk 0:02:44]}  Bh4 {[%clk 0:02:39]} 18. Qd3 {[%clk 0:02:33]}  Rad8 {[%clk 0:02:27]} 19. Qh3 {[%clk 0:02:33]}  Be7 {[%clk 0:02:14]} 20. Kh1 {[%clk 0:01:59]}  Bc5 {[%clk 0:02:05]} 21. Rf3 {[%clk 0:01:47]}  Bd4 {[%clk 0:01:53]} 22. Bxd4 {[%clk 0:01:41]}  Nxd4 {[%clk 0:01:54]} 23. Re3 {[%clk 0:01:39]}  c6 {[%clk 0:01:25]} 24. Nb4 {[%clk 0:01:34]}  Rfe8 {[%clk 0:01:25]} 25. Nd3 {[%clk 0:01:28]}  Bd7 {[%clk 0:01:20]} 26. Ne5 {[%clk 0:01:28]}  Qe6 {[%clk 0:01:18]} 27. Rd1 {[%clk 0:01:21]}  Bc8 {[%clk 0:01:17]} 28. c5 {[%clk 0:01:07]}  Qf6 {[%clk 0:00:34]} 29. Red3 {[%clk 0:00:35]}  Nxe2 {[%clk 0:00:30]} 30. Qe3 {[%clk 0:00:32]}  Rxd3 {[%clk 0:00:25]} 31. Rxd3 {[%clk 0:00:28]}  Nxf4 {[%clk 0:00:24]} 32. Qxf4 {[%clk 0:00:26]}  Qxe5 {[%clk 0:00:17]} 33. Qxe5 {[%clk 0:00:09]}  Rxe5 {[%clk 0:00:18]} 34. Rd8+ {[%clk 0:00:10]}  Kf7 {[%clk 0:00:18]} 35. Rxc8 {[%clk 0:00:10]}  Re1+ {[%clk 0:00:18]} 36. Bf1 {[%clk 0:00:11]}  Rxf1+ {[%clk 0:00:19]} 37. Kg2 {[%clk 0:00:12]}  Re1 {[%clk 0:00:19]} 38. Kf3 {[%clk 0:00:12]}  g5 {[%clk 0:00:17]} 39. h4 {[%clk 0:00:12]}  h6 {[%clk 0:00:16]} 40. Rh8 {[%clk 0:00:11]}  Kg7 {[%clk 0:00:16]} 41. Ra8 {[%clk 0:00:12]}  Re7 {[%clk 0:00:17]} 42. Rxa7 {[%clk 0:00:11]}  Kf6 {[%clk 0:00:17]} 43. h5 {[%clk 0:00:11]}  g4+ {[%clk 0:00:18]} 44. Kf4 {[%clk 0:00:11]}  Re4+ {[%clk 0:00:17]} 45. Kg3 {[%clk 0:00:12]}  Kg5 {[%clk 0:00:18]} 46. Rxb7 {[%clk 0:00:12]}  f4+ {[%clk 0:00:19]} 47. Kf2 {[%clk 0:00:12]}  g3+ {[%clk 0:00:19]} 48. Kf3 {[%clk 0:00:12]}  Re3+ {[%clk 0:00:19]} 49. Kg2 {[%clk 0:00:12]}  Re2+ {[%clk 0:00:20]} 50. Kf3 {[%clk 0:00:12]}  Rf2+ {[%clk 0:00:20]} 51. Ke4 {[%clk 0:00:13]}  g2 {[%clk 0:00:21]} 52. Rg7+ {[%clk 0:00:13]}  Kh4 {[%clk 0:00:21]} 53. a4 {[%clk 0:00:12]}  f3 {[%clk 0:00:22]} 54. Ke3 {[%clk 0:00:12]}  Rf1 {[%clk 0:00:22]} 55. a5 {[%clk 0:00:11]}  g1=Q+ {[%clk 0:00:18]} 56. Rxg1 {[%clk 0:00:11]}  Rxg1 {[%clk 0:00:19]} 57. Kxf3 {[%clk 0:00:11]}  Rb1 {[%clk 0:00:19]} 58. b4 {[%clk 0:00:12]}  Rxb4 {[%clk 0:00:19]} 0-1


[Site "https://www.chess.com"]

[Event "Titled Tuesday Blitz February 15 Early 2022"]
[White "Reprintsev, Alexander"]
[Black "Zaichenko, Daria"]
[WhiteFideId "14100541"]
[BlackFideId "4197453"]
[WhiteElo "2126"]
[BlackElo "2039"]
[Result "1-0"]
[Round "02"]
[TimeControl "180+1"]
[Date "2022.02.15"]
[WhiteClock "0:01:15"]
[BlackClock "0:00:19"]

1. e4 {[%clk 0:02:41]}  c5 {[%clk 0:02:59]} 2. b3 {[%clk 0:02:33]}  e6 {[%clk 0:02:55]} 3. Qe2 {[%clk 0:02:32]}  Ne7 {[%clk 0:02:53]} 4. Bb2 {[%clk 0:02:32]}  d5 {[%clk 0:02:51]} 5. Nf3 {[%clk 0:02:31]}  d4 {[%clk 0:02:50]} 6. c3 {[%clk 0:02:31]}  dxc3 {[%clk 0:02:47]} 7. Nxc3 {[%clk 0:02:32]}  Nbc6 {[%clk 0:02:46]} 8. O-O-O {[%clk 0:02:31]}  Nd4 {[%clk 0:02:43]} 9. Nxd4 {[%clk 0:02:16]}  cxd4 {[%clk 0:02:41]} 10. Nb5 {[%clk 0:02:16]}  e5 {[%clk 0:02:38]} 11. Qc4 {[%clk 0:02:09]}  Nc6 {[%clk 0:01:48]} 12. Qd5 {[%clk 0:02:08]}  Be6 {[%clk 0:01:44]} 13. Qxd8+ {[%clk 0:02:08]}  Rxd8 {[%clk 0:01:41]} 14. Nc7+ {[%clk 0:02:08]}  Kd7 {[%clk 0:01:29]} 15. Nxe6 {[%clk 0:02:03]}  Kxe6 {[%clk 0:01:29]} 16. Bc4+ {[%clk 0:01:58]}  Ke7 {[%clk 0:01:28]} 17. g3 {[%clk 0:01:51]}  f6 {[%clk 0:01:27]} 18. f4 {[%clk 0:01:51]}  g6 {[%clk 0:01:25]} 19. Rhf1 {[%clk 0:01:48]}  Bh6 {[%clk 0:01:21]} 20. Ba3+ {[%clk 0:01:40]}  Kd7 {[%clk 0:01:18]} 21. Bd5 {[%clk 0:01:40]}  Rc8 {[%clk 0:01:16]} 22. Kb2 {[%clk 0:01:38]}  d3 {[%clk 0:01:08]} 23. fxe5 {[%clk 0:01:27]}  Nxe5 {[%clk 0:00:51]} 24. Bxb7 {[%clk 0:01:24]}  Rc2+ {[%clk 0:00:47]} 25. Kb1 {[%clk 0:01:24]}  Rb8 {[%clk 0:00:39]} 26. Ba6 {[%clk 0:01:22]}  Rxd2 {[%clk 0:00:31]} 27. Rxd2 {[%clk 0:01:20]}  Bxd2 {[%clk 0:00:31]} 28. Rd1 {[%clk 0:01:20]}  Rb6 {[%clk 0:00:26]} 29. Bxd3 {[%clk 0:01:17]}  Nf3 {[%clk 0:00:25]} 30. Be2 {[%clk 0:01:16]}  Rd6 {[%clk 0:00:19]} 31. Bxf3 {[%clk 0:01:15]} 1-0


[Site "https://www.chess.com"]

[Event "Titled Tuesday Blitz February 15 Early 2022"]
[White "Rostovtsev, Dmitry"]
[Black "Shuvalov, Evgenij"]
[WhiteFideId "34278320"]
[BlackFideId "4187237"]
[WhiteElo "2218"]
[BlackElo "2119"]
[Result "1-0"]
[Round "02"]
[TimeControl "180+1"]
[Date "2022.02.15"]
[WhiteClock "0:00:20"]
[BlackClock "0:00:04"]

1. e4 {[%clk 0:03:00]}  e6 {[%clk 0:02:54]} 2. d4 {[%clk 0:02:52]}  d5 {[%clk 0:02:54]} 3. Nc3 {[%clk 0:02:52]}  Bb4 {[%clk 0:02:54]} 4. Qd3 {[%clk 0:02:53]}  dxe4 {[%clk 0:02:50]} 5. Qxe4 {[%clk 0:02:53]}  Nf6 {[%clk 0:02:50]} 6. Qh4 {[%clk 0:02:53]}  Nbd7 {[%clk 0:02:47]} 7. Nf3 {[%clk 0:02:51]}  Be7 {[%clk 0:02:41]} 8. Bg5 {[%clk 0:02:49]}  c5 {[%clk 0:02:37]} 9. O-O-O {[%clk 0:02:47]}  Qa5 {[%clk 0:02:31]} 10. Bc4 {[%clk 0:02:02]}  cxd4 {[%clk 0:02:23]} 11. Rxd4 {[%clk 0:02:00]}  h6 {[%clk 0:02:19]} 12. Kb1 {[%clk 0:01:53]}  a6 {[%clk 0:01:56]} 13. Rhd1 {[%clk 0:01:42]}  b5 {[%clk 0:01:51]} 14. Bb3 {[%clk 0:01:42]}  b4 {[%clk 0:01:50]} 15. Ne4 {[%clk 0:01:36]}  O-O {[%clk 0:01:21]} 16. Rxd7 {[%clk 0:00:43]}  Bxd7 {[%clk 0:00:49]} 17. Nxf6+ {[%clk 0:00:31]}  Bxf6 {[%clk 0:00:46]} 18. Bxf6 {[%clk 0:00:31]}  Bc6 {[%clk 0:00:24]} 19. Qg4 {[%clk 0:00:22]}  g6 {[%clk 0:00:23]} 20. Ne5 {[%clk 0:00:22]}  Kh7 {[%clk 0:00:10]} 21. Nxc6 {[%clk 0:00:21]}  Qc7 {[%clk 0:00:10]} 22. Ne5 {[%clk 0:00:20]}  a5 {[%clk 0:00:09]} 23. Qf4 {[%clk 0:00:19]}  a4 {[%clk 0:00:07]} 24. Rd3 {[%clk 0:00:20]}  axb3 {[%clk 0:00:06]} 25. Qxh6+ {[%clk 0:00:20]}  Kxh6 {[%clk 0:00:04]} 26. Rh3# {[%clk 0:00:20]} 1-0


[Site "https://www.chess.com"]

[Event "Titled Tuesday Blitz February 15 Early 2022"]
[White "Ruperez Benito, Antonio"]
[Black "Fernandez Siles, Luis"]
[WhiteFideId "22245049"]
[BlackFideId "2209420"]
[WhiteElo "2249"]
[BlackElo "2212"]
[Result "1-0"]
[Round "02"]
[TimeControl "180+1"]
[Date "2022.02.15"]
[WhiteClock "0:01:15"]
[BlackClock "0:01:00"]

1. d4 {[%clk 0:03:00]}  Nf6 {[%clk 0:02:58]} 2. c4 {[%clk 0:02:59]}  g6 {[%clk 0:02:58]} 3. Nc3 {[%clk 0:02:53]}  Bg7 {[%clk 0:02:59]} 4. e4 {[%clk 0:02:53]}  d6 {[%clk 0:02:59]} 5. Be2 {[%clk 0:02:53]}  O-O {[%clk 0:02:59]} 6. Be3 {[%clk 0:02:54]}  c6 {[%clk 0:02:58]} 7. Qd2 {[%clk 0:02:54]}  a6 {[%clk 0:02:58]} 8. h3 {[%clk 0:02:53]}  b5 {[%clk 0:02:58]} 9. a3 {[%clk 0:02:49]}  Bb7 {[%clk 0:02:57]} 10. Nf3 {[%clk 0:02:48]}  bxc4 {[%clk 0:02:56]} 11. Bxc4 {[%clk 0:02:48]}  d5 {[%clk 0:02:56]} 12. exd5 {[%clk 0:02:47]}  cxd5 {[%clk 0:02:57]} 13. Bd3 {[%clk 0:02:45]}  Ne4 {[%clk 0:02:54]} 14. Qe2 {[%clk 0:02:35]}  Nd7 {[%clk 0:02:45]} 15. O-O {[%clk 0:02:27]}  Qb6 {[%clk 0:02:23]} 16. Rab1 {[%clk 0:02:16]}  a5 {[%clk 0:02:23]} 17. Na4 {[%clk 0:02:00]}  Qa7 {[%clk 0:02:13]} 18. Rfc1 {[%clk 0:01:58]}  Rfc8 {[%clk 0:02:07]} 19. Bb5 {[%clk 0:01:58]}  Ba6 {[%clk 0:02:04]} 20. Bxa6 {[%clk 0:01:56]}  Rxc1+ {[%clk 0:02:02]} 21. Rxc1 {[%clk 0:01:57]}  Qxa6 {[%clk 0:02:02]} 22. Qxa6 {[%clk 0:01:53]}  Rxa6 {[%clk 0:02:02]} 23. Rc8+ {[%clk 0:01:54]}  Nf8 {[%clk 0:01:57]} 24. b3 {[%clk 0:01:43]}  f6 {[%clk 0:01:52]} 25. Nc5 {[%clk 0:01:38]}  Rb6 {[%clk 0:01:49]} 26. Nd7 {[%clk 0:01:31]}  Rxb3 {[%clk 0:01:46]} 27. Nxf8 {[%clk 0:01:31]}  Bxf8 {[%clk 0:01:38]} 28. Bh6 {[%clk 0:01:31]}  Kf7 {[%clk 0:01:39]} 29. Rxf8+ {[%clk 0:01:26]}  Ke6 {[%clk 0:01:39]} 30. a4 {[%clk 0:01:26]}  Rb4 {[%clk 0:01:39]} 31. Rh8 {[%clk 0:01:21]}  Rxa4 {[%clk 0:01:36]} 32. Rxh7 {[%clk 0:01:21]}  Ra1+ {[%clk 0:01:36]} 33. Kh2 {[%clk 0:01:21]}  Nxf2 {[%clk 0:01:36]} 34. Bf8 {[%clk 0:01:20]}  Kf5 {[%clk 0:01:10]} 35. Rxe7 {[%clk 0:01:18]}  Ra2 {[%clk 0:01:01]} 36. Bh6 {[%clk 0:01:15]}  a4 {[%clk 0:01:00]} 37. Nh4# {[%clk 0:01:15]} 1-0


[Site "https://www.chess.com"]

[Event "Titled Tuesday Blitz February 15 Early 2022"]
[White "Sadhwani, Raunak"]
[Black "Maltsevskaya, Aleksandra"]
[WhiteFideId "35093487"]
[BlackFideId "24174041"]
[WhiteElo "2616"]
[BlackElo "2283"]
[Result "1-0"]
[Round "02"]
[TimeControl "180+1"]
[Date "2022.02.15"]
[WhiteClock "0:02:32"]
[BlackClock "0:01:31"]

1. d4 {[%clk 0:03:00]}  Nf6 {[%clk 0:02:57]} 2. Nf3 {[%clk 0:03:01]}  g6 {[%clk 0:02:58]} 3. Bf4 {[%clk 0:03:01]}  Bg7 {[%clk 0:02:57]} 4. Nc3 {[%clk 0:03:01]}  d6 {[%clk 0:02:58]} 5. e4 {[%clk 0:03:02]}  O-O {[%clk 0:02:58]} 6. Qd2 {[%clk 0:03:02]}  Nbd7 {[%clk 0:02:59]} 7. Bh6 {[%clk 0:03:02]}  c5 {[%clk 0:02:57]} 8. O-O-O {[%clk 0:03:00]}  cxd4 {[%clk 0:02:56]} 9. Nxd4 {[%clk 0:03:01]}  Nc5 {[%clk 0:02:56]} 10. f3 {[%clk 0:03:00]}  a6 {[%clk 0:02:55]} 11. h4 {[%clk 0:03:00]}  b5 {[%clk 0:02:54]} 12. h5 {[%clk 0:03:01]}  b4 {[%clk 0:02:54]} 13. Nd5 {[%clk 0:03:00]}  Nxd5 {[%clk 0:01:58]} 14. exd5 {[%clk 0:03:01]}  e5 {[%clk 0:01:58]} 15. hxg6 {[%clk 0:02:50]}  hxg6 {[%clk 0:01:32]} 16. Bxg7 {[%clk 0:02:45]}  Kxg7 {[%clk 0:01:33]} 17. Qh6+ {[%clk 0:02:45]}  Kf6 {[%clk 0:01:33]} 18. Nc6 {[%clk 0:02:40]}  Qe8 {[%clk 0:01:31]} 19. g4 {[%clk 0:02:32]} 1-0


[Site "https://www.chess.com"]